bitfinex-derivatives/quotes_BTCF0:USTF0_20241021
["timestamp","ask_amount","ask_price","bid_price","bid_amount"]
[1729532965683,0.00821884,67635.0,67634.0,0.13806]
[1729532965877,0.01821884,67635.0,67634.0,0.13806]
[1729532966175,0.01821884,67635.0,67634.0,0.15962674]
[1729532966376,0.01321884,67635.0,67634.0,0.15962674]
[1729532966691,0.11152,67649.0,67637.0,0.073956]
[1729532966890,0.073945,67648.0,67647.0,0.04373494]
[1729532967187,0.11152,67649.0,67645.0,0.05831244]
[1729532967385,0.185464,67649.0,67648.0,0.04375079]
[1729532967985,0.185464,67649.0,67648.0,0.04375046]
[1729532968185,0.185464,67649.0,67648.0,0.04375058]
[1729532968385,0.185464,67649.0,67646.0,0.05831244]
[1729532968386,0.073946,67647.0,67646.0,0.05831244]
[1729532969181,0.005,67648.0,67646.0,0.05831244]
[1729532969380,0.005,67648.0,67647.0,0.073946]
[1729532969782,0.434743,67650.0,67645.0,0.07289156]
[1729532970087,0.434743,67650.0,67649.0,0.073944]
[1729532970420,0.07394,67654.0,67653.0,0.073938]
[1729532972076,0.07794,67654.0,67653.0,0.073938]
[1729532972287,0.08494,67654.0,67653.0,0.074938]
[1729532972501,0.011,67654.0,67653.0,0.074938]
[1729532972700,0.01,67654.0,67653.0,0.074938]
[1729532972895,0.083938,67654.0,67653.0,0.074938]
[1729532973283,0.080938,67654.0,67653.0,0.074938]
[1729532973577,0.078938,67654.0,67653.0,0.073938]
[1729532974603,0.21360925,67654.0,67653.0,0.03001731]
[1729532974776,0.21060925,67654.0,67653.0,0.03001731]
[1729532974977,0.21460925,67654.0,67653.0,0.03001731]
[1729532975488,0.21060925,67654.0,67653.0,0.03001731]
[1729532975692,0.21360925,67654.0,67653.0,0.03001731]
[1729532975886,0.21160925,67654.0,67653.0,0.03001731]
[1729532976087,0.21460925,67654.0,67653.0,0.03001731]
[1729532976891,0.21160925,67654.0,67653.0,0.03001731]
[1729532977090,0.21360925,67654.0,67653.0,0.03001731]
[1729532978487,0.21360765,67654.0,67653.0,0.03001731]
[1729532979598,0.073942,67651.0,67650.0,0.138042]
[1729532979898,0.20861165,67651.0,67650.0,0.138042]
[1729532981392,0.20861165,67651.0,67650.0,0.139042]
[1729532981603,0.073942,67651.0,67650.0,0.139042]
[1729532987384,0.073942,67651.0,67650.0,0.138042]
[1729532987586,0.073942,67651.0,67650.0,0.139042]
[1729532990090,0.073942,67651.0,67650.0,0.0651]
[1729532993800,0.073939,67654.0,67652.0,0.07394]
[1729532994104,0.3608,67656.0,67650.0,0.0651]
[1729532994293,0.07394,67653.0,67651.0,0.073941]
[1729532994694,0.07394,67653.0,67650.0,0.0651]
[1729532994695,0.073931,67661.0,67658.0,0.073934]
[1729532994901,0.073919,67672.0,67658.0,0.434734]
[1729532994902,0.07393,67662.0,67658.0,0.434734]
[1729532995199,0.073931,67661.0,67658.0,0.434734]
[1729532996197,0.0102181,67659.0,67658.0,0.435734]
[1729532996904,0.14486589,67659.0,67658.0,0.001]
[1729532997206,0.17275813,67659.0,67658.0,0.002]
[1729532999303,0.22579889,67659.0,67658.0,0.002]
[1729532999498,0.22579889,67659.0,67657.0,0.04113357]
[1729532999499,0.28649029,67659.0,67657.0,0.04113357]
[1729532999704,0.26927319,67658.0,67657.0,0.04113357]
[1729533000096,0.19533919,67658.0,67650.0,0.08528782]
[1729533000297,0.26927419,67657.0,67656.0,0.073936]
[1729533000498,0.19533919,67657.0,67656.0,0.073936]
[1729533001403,0.27427419,67657.0,67656.0,0.073936]
[1729533001712,0.28027419,67657.0,67656.0,0.074936]
[1729533001908,0.20633919,67657.0,67656.0,0.074936]
[1729533002406,0.20634235,67657.0,67656.0,0.074936]
[1729533002858,0.28027735,67657.0,67656.0,0.03785783]
[1729533003011,0.14565095,67657.0,67656.0,0.03785783]
[1729533003201,0.20634235,67657.0,67656.0,0.03785783]
[1729533003906,0.14565095,67657.0,67656.0,0.03785783]
[1729533004102,0.20634235,67657.0,67656.0,0.03785783]
[1729533004620,0.20634235,67657.0,67656.0,0.48125783]
[1729533004621,0.16574141,67657.0,67656.0,0.48125783]
[1729533004818,0.0022181,67659.0,67658.0,0.073934]
[1729533005003,0.23644366,67664.0,67663.0,0.073928]
[1729533005201,0.434721,67670.0,67658.0,0.3608]
[1729533005406,0.434721,67670.0,67668.0,0.073923]
[1729533006202,0.434721,67670.0,67658.0,0.3628]
[1729533006409,0.434721,67670.0,67666.0,0.073925]
[1729533006911,0.434721,67670.0,67668.0,0.001]
[1729533006912,0.438721,67670.0,67668.0,0.001]
[1729533007121,0.438721,67670.0,67669.0,0.073922]
[1729533007122,0.004,67670.0,67669.0,0.073922]
[1729533007415,0.004,67670.0,67669.0,0.134222]
[1729533007605,0.0612,67680.0,67678.0,0.073912]
[1729533007997,0.0612,67680.0,67679.0,0.073911]
[1729533008200,0.00221694,67683.0,67682.0,0.073908]
[1729533010513,0.00521694,67683.0,67682.0,0.073908]
[1729533011417,0.01421694,67683.0,67682.0,0.074908]
[1729533011622,0.01421694,67683.0,67682.0,0.09595629]
[1729533012016,0.00521694,67683.0,67682.0,0.09495629]
[1729533012205,0.00921694,67683.0,67682.0,0.09495629]
[1729533013106,0.0454165,67683.0,67682.0,0.09495629]
[1729533013910,0.00921694,67683.0,67682.0,0.09495629]
[1729533024527,0.007,67683.0,67682.0,0.09495629]
[1729533026532,0.00669697,67683.0,67682.0,0.09495629]
[1729533031535,0.00669697,67683.0,67682.0,0.13864886]
[1729533032633,0.00669697,67683.0,67682.0,0.09495629]
[1729533034529,0.00669697,67683.0,67682.0,0.15321305]
[1729533034725,0.04289771,67683.0,67682.0,0.09495629]
[1729533035336,0.00669697,67683.0,67682.0,0.09495629]
[1729533035832,0.08827287,67683.0,67682.0,0.09495629]
[1729533041737,0.3608,67688.0,67682.0,0.20760788]
[1729533041997,0.3608,67688.0,67687.0,0.073902]
[1729533042136,0.3608,67688.0,67687.0,0.18655359]
[1729533043834,0.3678,67688.0,67687.0,0.18755359]
[1729533044238,0.3688,67688.0,67687.0,0.18755359]
[1729533045033,0.3688,67688.0,67687.0,0.18855359]
[1729533046946,0.3688,67688.0,67687.0,0.2618247]
[1729533047249,0.3688,67688.0,67687.0,0.26182506]
[1729533048543,0.3688,67688.0,67687.0,0.14917347]
[1729533049838,0.3688,67688.0,67687.0,0.075902]
[1729533049839,0.45037247,67688.0,67687.0,0.075902]
[1729533050049,0.50339077,67688.0,67687.0,0.075902]
[1729533051941,0.45037247,67688.0,67687.0,0.075902]
[1729533053248,0.50339038,67688.0,67687.0,0.075902]
[1729533056952,0.3688,67688.0,67687.0,0.075902]
[1729533064843,0.45037111,67688.0,67687.0,0.075902]
[1729533065050,0.073907,67683.0,67682.0,0.02104829]
[1729533065250,0.03619861,67683.0,67682.0,0.073907]
[1729533066742,0.04119861,67683.0,67682.0,0.073907]
[1729533067146,0.08657111,67683.0,67682.0,0.073907]
[1729533069261,0.08657111,67683.0,67682.0,0.09532874]
[1729533071955,0.005,67683.0,67682.0,0.20797883]
[1729533073761,0.005,67683.0,67682.0,0.09532874]
[1729533073957,0.005,67683.0,67682.0,0.20797877]
[1729533077066,0.005,67683.0,67682.0,0.28141875]
[1729533077267,0.005,67683.0,67682.0,0.28141854]
[1729533077971,0.005,67683.0,67682.0,0.28142138]
[1729533078758,0.005,67683.0,67682.0,0.20798112]
[1729533079957,0.005,67683.0,67682.0,0.15409359]
[1729533083665,0.005,67683.0,67682.0,0.09532874]
[1729533084659,0.3608,67691.0,67690.0,0.073899]
[1729533084965,0.0022163,67697.0,67691.0,0.073898]
[1729533085176,0.0022163,67697.0,67696.0,0.073892]
[1729533085769,0.0022163,67697.0,67696.0,0.11792066]
[1729533086167,0.0022163,67697.0,67696.0,0.073892]
[1729533086565,0.0042163,67697.0,67696.0,0.074892]
[1729533086873,0.08577678,67697.0,67696.0,0.06407504]
[1729533087460,0.09077678,67697.0,67696.0,0.06507504]
[1729533089667,0.09077678,67697.0,67696.0,0.08586904]
[1729533094373,0.09077677,67697.0,67696.0,0.08586904]
[1729533094973,0.0092163,67697.0,67696.0,0.08586904]
[1729533097372,0.0092163,67697.0,67696.0,0.022794]
[1729533099082,0.0092163,67697.0,67696.0,0.096686]
[1729533101997,0.04540971,67697.0,67696.0,0.096686]
[1729533102572,0.09077569,67697.0,67696.0,0.096686]
[1729533102784,0.09077569,67697.0,67696.0,0.022794]
[1729533102990,0.09077569,67697.0,67696.0,0.096686]
[1729533107783,0.0092163,67697.0,67696.0,0.096686]
[1729533109454,0.09077676,67697.0,67696.0,0.096686]
[1729533109989,0.0092163,67697.0,67696.0,0.14072053]
[1729533110391,0.0092163,67697.0,67696.0,0.096686]
[1729533110593,0.0092163,67697.0,67696.0,0.14073153]
[1729533111492,0.0092163,67697.0,67696.0,0.096686]
[1729533112094,0.0831073,67697.0,67696.0,0.022794]
[1729533113687,0.0092163,67697.0,67696.0,0.022794]
[1729533114432,0.0092163,67697.0,67696.0,0.096686]
[1729533114791,0.0092163,67697.0,67696.0,0.022794]
[1729533117698,0.0831073,67697.0,67696.0,0.022794]
[1729533117903,0.0092163,67697.0,67696.0,0.022794]
[1729533119589,0.0831073,67697.0,67696.0,0.022794]
[1729533120599,0.0092163,67697.0,67696.0,0.022794]
[1729533120806,0.0831073,67697.0,67696.0,0.022794]
[1729533121596,0.0092163,67697.0,67696.0,0.022794]
[1729533122915,0.007,67697.0,67696.0,0.022794]
[1729533123402,0.080891,67697.0,67696.0,0.022794]
[1729533125099,0.21547036,67697.0,67696.0,0.022794]
[1729533126804,0.14157936,67697.0,67696.0,0.096686]
[1729533127199,0.08856556,67697.0,67696.0,0.096686]
[1729533128298,0.16245656,67697.0,67696.0,0.022794]
[1729533128898,0.1624543,67697.0,67696.0,0.022794]
[1729533129694,0.0885633,67697.0,67696.0,0.022794]
[1729533130395,0.0885633,67697.0,67696.0,0.096686]
[1729533130789,0.1624543,67697.0,67696.0,0.022794]
[1729533131001,0.0885633,67697.0,67696.0,0.096686]
[1729533132099,0.007,67697.0,67696.0,0.096686]
[1729533133107,0.073887,67701.0,67697.0,0.073891]
[1729533133807,0.073889,67700.0,67697.0,0.073891]
[1729533135427,0.073889,67700.0,67696.0,0.020794]
[1729533135714,0.073889,67700.0,67698.0,0.07389]
[1729533135895,0.075889,67700.0,67698.0,0.07389]
[1729533136206,0.073889,67699.0,67698.0,0.07389]
[1729533138608,0.076889,67699.0,67698.0,0.07389]
[1729533139804,0.07389,67698.0,67697.0,0.04410365]
[1729533140008,0.08156329,67698.0,67693.0,0.02149616]
[1729533140196,0.073895,67695.0,67694.0,0.073895]
[1729533140393,0.15545829,67695.0,67694.0,0.073895]
[1729533140712,0.15545829,67695.0,67685.0,0.0954769]
[1729533140899,0.08156329,67694.0,67688.0,0.073901]
[1729533141098,0.08156329,67694.0,67685.0,0.0215729]
[1729533141099,0.08156329,67693.0,67685.0,0.0215729]
[1729533141295,0.08156329,67692.0,67689.0,0.0739]
[1729533141493,0.08156329,67691.0,67689.0,0.0739]
[1729533141746,0.08156329,67690.0,67689.0,0.0739]
[1729533142492,0.03619514,67690.0,67689.0,0.0739]
[1729533143311,0.03619514,67690.0,67689.0,0.0799]
[1729533143916,0.03619514,67690.0,67689.0,0.0859]
[1729533144217,0.15546226,67690.0,67689.0,0.012]
[1729533144400,0.08156326,67690.0,67689.0,0.012]
[1729533145313,0.073896,67693.0,67689.0,0.012]
[1729533145510,0.08156311,67692.0,67689.0,0.012]
[1729533145707,0.08156311,67691.0,67689.0,0.012]
[1729533145952,0.08156311,67690.0,67689.0,0.012]
[1729533146308,0.08156311,67690.0,67689.0,0.3728]
[1729533146602,0.08156311,67690.0,67689.0,0.3668]
[1729533146915,0.08156311,67690.0,67689.0,0.3728]
[1729533147214,0.073897,67692.0,67689.0,0.3728]
[1729533147397,0.073897,67692.0,67691.0,0.05881947]
[1729533147603,0.0581,67695.0,67691.0,0.05881947]
[1729533147804,0.073897,67692.0,67691.0,0.05881947]
[1729533148310,0.073898,67691.0,67689.0,0.06481947]
[1729533148610,0.0581,67695.0,67689.0,0.012]
[1729533148611,0.434699,67690.0,67689.0,0.012]
[1729533148809,0.07389,67698.0,67696.0,6.143207]
[1729533149207,0.517051,67697.0,67696.0,6.143207]
[1729533150812,0.627371,67697.0,67696.0,6.143207]
[1729533151107,1.227371,67697.0,67696.0,6.143207]
[1729533151500,1.228371,67697.0,67696.0,6.143207]
[1729533152104,1.402671,67697.0,67696.0,6.143207]
[1729533152603,1.32878,67697.0,67696.0,6.143207]
[1729533155110,1.4633865,67697.0,67696.0,5.90648947]
[1729533155358,1.5372775,67697.0,67696.0,5.90648947]
[1729533155508,1.72916995,67697.0,67696.0,5.90648947]
[1729533155816,1.12916995,67697.0,67696.0,5.90648947]
[1729533156010,0.9372775,67697.0,67696.0,5.90648947]
[1729533156319,1.4633865,67697.0,67696.0,5.90648947]
[1729533157199,0.8633865,67697.0,67696.0,5.90648947]
[1729533159114,0.9372775,67697.0,67696.0,5.90648947]
[1729533161821,1.1289984,67697.0,67696.0,5.90648947]
[1729533162240,0.77877445,67697.0,67696.0,5.90648947]
[1729533162429,0.66845445,67697.0,67696.0,5.90648947]
[1729533162628,0.77881445,67697.0,67696.0,5.90648947]
[1729533163321,0.09540345,67697.0,67696.0,5.90648947]
[1729533163629,0.64892345,67697.0,67696.0,5.90648947]
[1729533165329,0.20576157,67697.0,67696.0,5.90648947]
[1729533165823,0.27965257,67697.0,67696.0,5.90648947]
[1729533166228,0.243451,67697.0,67696.0,5.90648947]
[1729533166926,0.27965266,67697.0,67696.0,5.90648947]
[1729533175335,0.16929266,67697.0,67696.0,5.90648947]
[1729533175633,0.32474951,67697.0,67696.0,5.90648947]
[1729533177125,0.43843749,67697.0,67696.0,5.66978637]
[1729533177638,0.38023749,67697.0,67696.0,5.66978637]
[1729533178332,0.38023749,67697.0,67696.0,5.35911506]
[1729533179139,0.34403583,67697.0,67696.0,5.35911506]
[1729533179631,0.23395583,67697.0,67696.0,5.35911506]
[1729533179839,0.23395583,67697.0,67696.0,5.71991506]
[1729533183155,0.23395583,67697.0,67696.0,5.48321468]
[1729533184230,0.074891,67697.0,67696.0,5.48321468]
[1729533184836,0.184971,67697.0,67696.0,5.48321468]
[1729533191231,0.074891,67697.0,67696.0,5.55710668]
[1729533198047,0.074891,67697.0,67696.0,5.48321468]
[1729533198945,0.074891,67697.0,67696.0,5.12241468]
[1729533199153,0.074891,67697.0,67696.0,4.69770968]
[1729533199154,0.67350393,67697.0,67696.0,4.69770968]
[1729533199345,0.72652184,67697.0,67696.0,4.69770968]
[1729533199945,0.74760541,67697.0,67696.0,4.69770968]
[1729533200643,0.30444541,67697.0,67696.0,4.69770968]
[1729533200845,0.28336184,67697.0,67696.0,4.69770968]
[1729533201144,0.28336184,67697.0,67696.0,4.4609983]
[1729533201145,0.17328184,67697.0,67696.0,4.4609983]
[1729533203654,0.17328469,67697.0,67696.0,4.4609983]
[1729533204044,0.28312469,67697.0,67696.0,4.4609983]
[1729533207156,0.184731,67697.0,67696.0,4.4609983]
[1729533210266,0.074891,67697.0,67696.0,4.4609983]
[1729533214262,0.1202666,67697.0,67696.0,4.4609983]
[1729533219976,0.17328763,67697.0,67696.0,4.4609983]
[1729533220475,0.17328763,67697.0,67696.0,4.8217983]
[1729533220476,0.1202666,67697.0,67696.0,4.8217983]
[1729533222260,0.074891,67697.0,67696.0,4.8217983]
[1729533223300,0.044891,67697.0,67696.0,4.8217983]
[1729533229281,0.14328338,67697.0,67696.0,4.8217983]
[1729533229524,0.16494458,67697.0,67696.0,4.8217983]
[1729533232573,0.16494458,67697.0,67696.0,4.4609983]
[1729533237485,0.0665522,67697.0,67696.0,4.4609983]
[1729533244397,0.16494779,67697.0,67696.0,4.4609983]
[1729533245690,0.40143218,67697.0,67696.0,4.4609983]
[1729533246103,0.40143296,67697.0,67696.0,4.4609983]
[1729533247501,0.16494857,67697.0,67696.0,4.4609983]
[1729533248506,0.52574857,67697.0,67696.0,4.4609983]
[1729533251312,0.58641439,67697.0,67696.0,4.1503078]
[1729533251908,0.69609439,67697.0,67696.0,4.1503078]
[1729533252315,0.5824081,67697.0,67696.0,4.1503078]
[1729533254011,0.5824081,67697.0,67696.0,3.8003078]
[1729533258021,0.58241239,67697.0,67696.0,3.8003078]
[1729533259808,0.5370322,67697.0,67696.0,3.8003078]
[1729533264121,0.4273522,67697.0,67696.0,3.8003078]
[1729533264320,0.5368322,67697.0,67696.0,3.8003078]
[1729533267426,0.63523966,67697.0,67696.0,3.8003078]
[1729533270728,0.6959128,67697.0,67696.0,3.48961236]
[1729533271425,0.65053221,67697.0,67696.0,3.48961236]
[1729533274522,0.58985907,67697.0,67696.0,3.48961236]
[1729533275727,0.48037907,67697.0,67696.0,3.48961236]
[1729533275913,0.58985907,67697.0,67696.0,3.48961236]
[1729533277314,0.22905907,67697.0,67696.0,3.48961236]
[1729533277522,0.1760322,67697.0,67696.0,3.48961236]
[1729533277722,0.5368322,67697.0,67696.0,3.48961236]
[1729533278025,0.58985907,67697.0,67696.0,3.48961236]
[1729533279843,0.22905907,67697.0,67696.0,3.48961236]
[1729533280021,0.1760322,67697.0,67696.0,3.48961236]
[1729533280522,0.5368322,67697.0,67696.0,3.48961236]
[1729533280831,0.58985907,67697.0,67696.0,3.48961236]
[1729533281438,0.48037907,67697.0,67696.0,3.48961236]
[1729533281781,0.9799922,67697.0,67696.0,1.09811281]
[1729533282375,0.9799922,67697.0,67696.0,0.89930081]
[1729533282403,0.9799922,67697.0,67696.0,0.75849081]
[1729533282419,1.03302501,67697.0,67696.0,0.50398781]
[1729533282859,1.03302501,67697.0,67696.0,0.35431309]
[1729533282860,1.03502501,67697.0,67696.0,0.35431309]
[1729533283033,1.63502501,67697.0,67696.0,0.23102009]
[1729533283267,1.63502501,67697.0,67685.0,0.0558]
[1729533283268,0.073903,67686.0,67685.0,0.0558]
[1729533283432,0.544183,67686.0,67685.0,0.0558]
[1729533283627,0.59721581,67686.0,67685.0,0.0558]
[1729533285032,0.60321581,67686.0,67685.0,0.0568]
[1729533285230,0.60621581,67686.0,67685.0,0.0578]
[1729533285735,0.49673581,67686.0,67685.0,0.0578]
[1729533286045,0.60621581,67686.0,67685.0,0.0578]
[1729533289428,0.553183,67686.0,67685.0,0.0578]
[1729533289829,0.553183,67686.0,67683.0,0.0568]
[1729533290136,0.553183,67686.0,67674.0,0.00221663]
[1729533290137,0.073915,67675.0,67674.0,0.00221663]
[1729533290333,0.073917,67673.0,67672.0,0.0582]
[1729533292655,0.073917,67673.0,67672.0,0.132119]
[1729533292936,0.073917,67673.0,67672.0,0.136119]
[1729533293128,0.073917,67673.0,67672.0,0.200719]
[1729533300744,0.02121852,67689.0,67672.0,1.53092]
[1729533301038,0.1854389,67687.0,67686.0,0.3608]
[1729533302121,0.1854389,67687.0,67679.0,0.07391]
[1729533302244,0.073904,67685.0,67684.0,0.3608]
[1729533302633,0.073904,67685.0,67678.0,0.3608]
[1729533302634,0.073911,67679.0,67678.0,0.3608]
[1729533304278,0.073911,67679.0,67678.0,0.877992]
[1729533304552,0.082904,67685.0,67684.0,0.075905]
[1729533304842,0.0022169,67687.0,67684.0,0.436705]
[1729533305050,0.073903,67686.0,67685.0,0.194103]
[1729533305433,0.073903,67686.0,67685.0,0.637343]
[1729533306441,0.073903,67686.0,67685.0,0.1202]
[1729533306944,0.073903,67686.0,67685.0,0.637344]
[1729533307134,0.073903,67686.0,67685.0,0.194104]
[1729533307331,0.073903,67686.0,67685.0,0.195104]
[1729533307841,0.073903,67686.0,67685.0,0.194104]
[1729533309545,0.073903,67686.0,67685.0,0.21553273]
[1729533310532,0.073904,67685.0,67684.0,0.3608]
[1729533311746,0.073904,67685.0,67684.0,0.3618]
[1729533312144,0.073904,67685.0,67684.0,0.3628]
[1729533319144,0.073904,67685.0,67684.0,0.436705]
[1729533323247,0.12691584,67694.0,67693.0,0.073896]
[1729533323440,0.073896,67694.0,67693.0,0.073896]
[1729533323637,0.073896,67694.0,67693.0,0.877856]
[1729533324051,0.073896,67694.0,67693.0,0.434696]
[1729533324640,0.07389,67700.0,67699.0,0.073888]
[1729533324847,0.07389,67700.0,67699.0,0.434688]
[1729533325542,0.07389,67700.0,67699.0,0.3608]
[1729533325956,0.07389,67700.0,67699.0,0.434689]
[1729533326251,0.07389,67700.0,67699.0,0.435689]
[1729533326757,0.07389,67700.0,67699.0,0.3618]
[1729533327381,0.07389,67700.0,67699.0,0.3628]
[1729533334065,0.07389,67700.0,67699.0,0.002]
[1729533334564,0.12690662,67700.0,67699.0,0.002]
[1729533336449,0.07389,67700.0,67699.0,0.002]
[1729533338065,0.09548305,67700.0,67699.0,0.002]
[1729533338752,0.07389,67700.0,67699.0,0.002]
[1729533339354,0.073899,67690.0,67689.0,0.3608]
[1729533340668,0.07391,67680.0,67679.0,0.073911]
[1729533340966,0.12692662,67680.0,67679.0,0.073911]
[1729533341768,0.07391,67680.0,67679.0,0.02150353]
[1729533342050,0.07391,67680.0,67676.0,0.073913]
[1729533342169,0.073913,67677.0,67676.0,0.073913]
[1729533343064,0.073913,67677.0,67676.0,0.09520808]
[1729533343566,0.073913,67677.0,67676.0,0.02129508]
[1729533343776,0.03692282,67677.0,67676.0,0.07078842]
[1729533344272,0.03692282,67677.0,67676.0,0.023]
[1729533344657,0.03692282,67677.0,67676.0,0.096914]
[1729533344859,0.03692282,67677.0,67676.0,0.085914]
[1729533345165,0.03692282,67677.0,67676.0,0.096914]
[1729533345768,0.03692282,67677.0,67676.0,0.11865899]
[1729533345969,0.03692282,67677.0,67676.0,0.3838]
[1729533346363,0.03692282,67677.0,67676.0,0.42788649]
[1729533346766,0.073917,67673.0,67672.0,0.00221655]
[1729533346965,0.073917,67673.0,67670.0,0.41958842]
[1729533346966,0.07392,67671.0,67670.0,0.3628]
[1729533347171,0.07392,67671.0,67670.0,0.3608]
[1729533348473,0.07392,67671.0,67670.0,0.3668]
[1729533349401,0.07492,67671.0,67670.0,0.3728]
[1729533351774,0.07492,67671.0,67670.0,0.446721]
[1729533352164,0.07492,67671.0,67670.0,0.3728]
[1729533353480,0.3618,67671.0,67658.0,0.07368683]
[1729533353788,0.073936,67656.0,67655.0,0.00014281]
[1729533355465,0.077936,67656.0,67655.0,0.00014281]
[1729533356267,0.085936,67656.0,67655.0,0.00114281]
[1729533356870,0.081936,67656.0,67655.0,0.00114281]
[1729533357067,0.089936,67656.0,67655.0,0.00214281]
[1729533364681,0.016,67656.0,67655.0,0.00214281]
[1729533365471,0.089936,67656.0,67655.0,0.00214281]
[1729533366082,0.225656,67656.0,67655.0,0.00214281]
[1729533366575,0.225656,67656.0,67655.0,0.07582964]
[1729533366900,0.073951,67643.0,67634.0,0.02116868]
[1729533367180,0.073963,67631.0,67630.0,0.1336]
[1729533367379,0.073955,67639.0,67630.0,0.8271824]
[1729533367580,0.073962,67632.0,67631.0,0.11274841]
[1729533367885,0.00014469,67632.0,67631.0,0.11274841]
[1729533368081,0.00014469,67632.0,67631.0,0.63031141]
[1729533368482,0.00014469,67632.0,67631.0,0.76754331]
[1729533368979,0.00014469,67632.0,67631.0,0.76954331]
[1729533369484,0.00014469,67632.0,67631.0,0.76754331]
[1729533369685,0.00214469,67632.0,67631.0,0.77454331]
[1729533370078,0.073961,67634.0,67633.0,0.073961]
[1729533370287,0.073961,67634.0,67633.0,0.68474131]
[1729533370582,0.1911144,67770.0,67633.0,0.68474131]
[1729533370583,0.07615309,67657.0,67633.0,1.81603123]
[1729533370790,0.00221809,67657.0,67648.0,0.3608]
[1729533370984,0.3608,67655.0,67649.0,0.17974841]
[1729533371179,0.073942,67651.0,67650.0,0.11274841]
[1729533371575,0.073942,67651.0,67650.0,0.24995106]
[1729533372392,0.087942,67651.0,67650.0,0.24995106]
[1729533372691,0.073943,67650.0,67649.0,0.067]
[1729533372872,0.073943,67650.0,67649.0,0.08872842]
[1729533374490,0.087943,67650.0,67649.0,0.08872842]
[1729533374993,0.101943,67650.0,67649.0,0.08872842]
[1729533379087,0.028,67650.0,67642.0,0.43102]
[1729533379287,0.07395,67643.0,67642.0,0.4289]
[1729533379587,0.07395,67643.0,67642.0,0.84053382]
[1729533380493,0.07395,67643.0,67642.0,0.47973382]
[1729533380689,0.07395,67643.0,67642.0,0.50091583]
[1729533381691,0.08195,67643.0,67642.0,0.50091583]
[1729533382198,0.08995,67643.0,67642.0,0.50091583]
[1729533382497,0.016,67643.0,67642.0,0.61881477]
[1729533382795,0.08995,67643.0,67642.0,0.50091583]
[1729533383598,0.08995,67643.0,67642.0,0.61881477]
[1729533384092,0.08995,67643.0,67642.0,0.6187082]
[1729533385492,0.08995,67643.0,67642.0,0.50091583]
[1729533386395,0.08995,67643.0,67642.0,0.50092224]
[1729533386991,0.08995,67643.0,67642.0,0.50092125]
[1729533387393,0.04553839,67643.0,67642.0,0.61869653]
[1729533387800,0.04553839,67643.0,67642.0,0.50092125]
[1729533388300,0.04553839,67643.0,67642.0,0.61868915]
[1729533388502,0.04553839,67643.0,67642.0,0.50092125]
[1729533388798,0.3608,67647.0,67642.0,0.20201324]
[1729533389008,0.3608,67647.0,67643.0,0.11273123]
[1729533389235,0.3608,67647.0,67644.0,0.11273123]
[1729533389405,0.073947,67646.0,67645.0,0.11273123]
[1729533390889,0.073949,67644.0,67643.0,0.001]
[1729533391091,0.073949,67644.0,67643.0,0.11273264]
[1729533393210,0.074949,67644.0,67643.0,0.11273264]
[1729533393503,0.002,67644.0,67642.0,0.02118201]
[1729533393706,0.002,67644.0,67641.0,0.0646]
[1729533393912,0.073951,67642.0,67641.0,0.0646]
[1729533394198,0.073951,67642.0,67641.0,0.19915881]
[1729533394797,0.073949,67645.0,67644.0,0.073949]
[1729533394995,0.073949,67645.0,67644.0,0.60333958]
[1729533395504,0.073949,67645.0,67644.0,0.4855804]
[1729533396296,0.074949,67645.0,67644.0,0.4855804]
[1729533396804,0.02386954,67657.0,67644.0,0.95813126]
[1729533396805,0.00221809,67657.0,67644.0,0.95813126]
[1729533397004,0.073939,67654.0,67653.0,0.17697168]
[1729533397206,0.073939,67654.0,67653.0,0.48556012]
[1729533397504,0.073938,67656.0,67655.0,0.073936]
[1729533397708,0.00221809,67657.0,67656.0,0.073936]
[1729533398008,0.00221809,67657.0,67656.0,0.48555812]
[1729533398009,0.00421809,67657.0,67656.0,0.48555812]
[1729533398706,0.00321809,67657.0,67656.0,0.48555812]
[1729533398920,0.01121809,67657.0,67656.0,0.48655812]
[1729533399411,0.01021809,67657.0,67656.0,0.48655812]
[1729533399709,0.081935,67657.0,67656.0,0.48655812]
[1729533400796,0.089935,67657.0,67656.0,0.48755812]
[1729533401708,0.089935,67657.0,67656.0,0.26219524]
[1729533402102,0.081935,67657.0,67656.0,0.26119524]
[1729533402303,0.081935,67657.0,67656.0,0.15146281]
[1729533402504,0.081935,67657.0,67656.0,0.077936]
[1729533402828,0.073935,67657.0,67656.0,0.10110861]
[1729533403410,0.073935,67657.0,67656.0,0.09810861]
[1729533403602,0.074935,67657.0,67656.0,0.02417261]
[1729533404114,0.074935,67657.0,67656.0,0.02117261]
[1729533404306,0.074935,67657.0,67656.0,0.001]
[1729533404507,0.073935,67657.0,67656.0,0.001]
[1729533404710,0.073935,67657.0,67656.0,0.003]
[1729533404907,0.073935,67657.0,67656.0,0.002]
[1729533405214,0.074935,67657.0,67656.0,0.002]
[1729533405712,0.073935,67657.0,67656.0,0.002]
[1729533406100,0.434729,67663.0,67655.0,0.16901506]
[1729533406307,0.073935,67657.0,67656.0,0.074936]
[1729533407201,0.073935,67657.0,67656.0,0.073936]
[1729533407408,0.3608,67663.0,67655.0,0.02555225]
[1729533407613,0.073936,67656.0,67655.0,0.09948925]
[1729533407811,0.073936,67656.0,67655.0,0.09748925]
[1729533408025,0.073936,67656.0,67655.0,0.09548925]
[1729533408803,0.073936,67656.0,67655.0,0.09648925]
[1729533409711,0.11933323,67656.0,67655.0,0.09648925]
[1729533410109,0.11933323,67656.0,67655.0,0.09748925]
[1729533410808,0.11933323,67656.0,67655.0,0.09548925]
[1729533412109,0.11933323,67656.0,67655.0,0.09648925]
[1729533413017,0.11933323,67656.0,67655.0,0.09748925]
[1729533414107,0.11933323,67656.0,67655.0,0.02355225]
[1729533416920,0.073936,67656.0,67655.0,0.02255225]
[1729533417216,0.073936,67656.0,67655.0,0.02155225]
[1729533417418,0.073938,67654.0,67653.0,0.14746581]
[1729533417613,0.073938,67654.0,67653.0,0.18664812]
[1729533418113,0.073938,67654.0,67653.0,0.18618843]
[1729533418617,0.073938,67654.0,67653.0,0.26212743]
[1729533418817,0.073938,67654.0,67653.0,0.20978974]
[1729533419219,0.073938,67654.0,67653.0,0.21178974]
[1729533419718,0.073938,67654.0,67653.0,0.13831043]